fUSD/lending_fUSD_20240616
["ID","MTS","AMOUNT","RATE_DAILY","PERIOD"]
[329654164,1718543496407,-1076.22,0.00026027,3]
[329654165,1718543496445,-2749.41,0.00026027,3]
[329654166,1718543496508,-791.62,0.00026027,3]
[329654167,1718543496547,-2698.23,0.00026027,3]
[329654168,1718543496588,-900.4,0.00026027,3]
[329654169,1718543496603,-500.0,0.00026027,3]
[329654170,1718543496630,-1139.85,0.00026027,3]
[329654171,1718543496644,-500.0,0.00026027,3]
[329654172,1718543496659,-1672.32,0.00026027,3]
[329654173,1718543496680,-569.27,0.00026027,3]
[329654174,1718543496716,-835.69,0.00026027,3]
[329654175,1718543496730,-1200.74,0.00026027,3]
[329654176,1718543496747,-666.2,0.00026027,3]
[329654177,1718543496764,-677.79,0.00026027,3]
[329654178,1718543496778,-737.27,0.00026027,3]
[329654179,1718543496788,-1661.59,0.00026027,3]
[329654180,1718543496801,-500.0,0.00026027,3]
[329654181,1718543496828,-1597.3,0.00026027,3]
[329654182,1718543496845,-1539.48,0.00026027,3]
[329654183,1718543496856,-1018.91,0.00026027,3]
[329654184,1718543496868,-1576.0,0.00026027,3]
[329654185,1718543496882,-500.0,0.00026027,3]
[329654186,1718543496893,-1000.71,0.00026027,3]
[329654187,1718543496906,-965.1,0.00026027,3]
[329654188,1718543496921,-1912.84,0.00026027,3]
[329654189,1718543496933,-500.0,0.00026027,3]
[329654190,1718543496946,-811.0,0.00026027,3]
[329654191,1718543496962,-1707.1,0.00026027,3]
[329654192,1718543496976,-500.0,0.00026027,3]
[329654193,1718543496990,-607.65,0.00026027,3]
[329654194,1718543497006,-500.0,0.00026027,3]
[329654195,1718543497021,-500.0,0.00026027,3]
[329654196,1718543497036,-776.41,0.00026027,3]
[329654197,1718543497052,-757.14,0.00026027,3]
[329654198,1718543497085,-6644.03,0.00026027,3]
[329654199,1718543497104,-530.75,0.00026027,3]
[329654200,1718543497143,-500.0,0.00026027,3]
[329654201,1718543497156,-500.0,0.00026027,3]
[329654202,1718543497171,-500.0,0.00026027,3]
[329654203,1718543497185,-151.0,0.00026027,7]
[329654204,1718543497208,-151.0,0.00026027,7]
[329654205,1718543497220,-151.0,0.00026027,7]
[329654206,1718543497232,-151.0,0.00026027,7]
[329654207,1718543497252,-151.0,0.00026027,7]
[329654208,1718543497272,-151.0,0.00026027,7]
[329654209,1718543497293,-150.0,0.00026047,2]
[329654210,1718543497308,-150.0,0.00026047,2]
[329654211,1718543497319,-150.0,0.00026047,2]
[329654212,1718543497348,-150.0,0.00026047,2]
[329654213,1718543497374,-150.0,0.00026047,2]
[329654214,1718543497386,-150.0,0.00026047,2]
[329654215,1718543497413,-150.0,0.00026047,2]
[329654216,1718543497430,-6006.7,0.000261,2]
[329654217,1718543497445,-500.0,0.00026198,3]
[329654218,1718543497457,-594.24,0.00026198,3]
[329654219,1718543497488,-3131.91,0.00026198,3]
[329654220,1718543497501,-965.52,0.00026198,3]
[329654221,1718543497517,-586.35,0.00026198,3]
[329654222,1718543497553,-1551.76,0.00026198,3]
[329654223,1718543497568,-500.0,0.00026198,3]
[329654224,1718543497584,-573.44,0.00026198,3]
[329654225,1718543497604,-500.0,0.00026198,3]
[329654226,1718543497616,-1506.09,0.00026198,3]
[329654227,1718543497649,-864.61,0.00026198,3]
[329654228,1718543497672,-606.9,0.00026198,3]
[329654229,1718543497685,-500.0,0.00026198,3]
[329654230,1718543497700,-330.68493424,0.00026198,3]
[329654231,1718543497713,-500.0,0.00026198,3]
[329654232,1718543497727,-516.73,0.00026198,3]
[329654233,1718543497741,-848.21,0.00026198,3]
[329654234,1718543497760,-544.71,0.00026198,3]
[329654235,1718543497782,-2488.18,0.00026198,3]
[329654236,1718543497811,-500.0,0.00026198,3]
[329654237,1718543497836,-1078.22,0.00026198,3]
[329654238,1718543497848,-571.93,0.00026199,3]
[329654239,1718543497867,-500.0,0.00026199,3]
[329654240,1718543497912,-500.0,0.00026199,3]
[329654241,1718543497948,-500.0,0.00026199,3]
[329654242,1718543497960,-483.93291863,0.00026199,3]
[329654243,1718543497973,-636.74,0.00026199,3]
[329654244,1718543498003,-500.0,0.00026199,3]
[329654245,1718543498031,-483.62369993,0.00026199,3]
[329654246,1718543498069,-561.64,0.00026199,3]
[329654247,1718543498127,-801.16,0.00026199,3]
[329654248,1718543498150,-1647.47,0.00026199,3]
[329654249,1718543498164,-500.0,0.00026199,3]
[329654250,1718543498185,-1007.94,0.00026199,3]
[329654251,1718543498274,-671.38,0.00026199,3]
[329654252,1718543498314,-765.87,0.00026199,3]
[329654253,1718543498360,-1108.45,0.00026199,3]
[329654254,1718543498385,-500.0,0.00026199,3]
[329654255,1718543498441,-1206.94,0.00026199,3]
[329654256,1718543498457,-576.89,0.00026199,3]
[329654257,1718543498481,-1759.47,0.00026199,3]
[329654258,1718543498532,-151.0,0.00026261,2]
[329654259,1718543498557,-500.0,0.00026298,3]
[329654260,1718543498568,-628.96837751,0.00026298,3]
[329654261,1718543498596,-500.0,0.00026298,3]
[329654262,1718543498628,-150.14,0.00026298,3]
[329654263,1718543498656,-500.0,0.00026298,3]
[329654264,1718543498684,-500.0,0.00026298,3]
[329654265,1718543498696,-500.0,0.00026298,3]
[329654266,1718543498716,-340.1838414,0.00026298,3]
[329654267,1718543498803,-3908.29,0.00026298,3]
[329654268,1718543498824,-8007.85,0.00026298,3]
[329654269,1718543498836,-500.0,0.00026298,3]
[329654270,1718543498858,-538.75,0.00026298,3]
[329654271,1718543498874,-1722.87,0.00026298,3]
[329654272,1718543498889,-1489.44,0.00026298,3]
[329654273,1718543498902,-649.48,0.00026298,3]
[329654274,1718543498944,-3520.91,0.00026298,3]
[329654275,1718543498957,-2428.49,0.00026298,3]
[329654276,1718543498992,-568.3,0.00026298,3]
[329654277,1718543499017,-1046.44,0.00026298,3]
[329654278,1718543499053,-629.85,0.00026298,3]
[329654279,1718543499101,-1143.75,0.00026299,3]
[329654280,1718543499115,-2358.06,0.00026299,3]
[329654281,1718543499142,-500.0,0.00026299,3]
[329654282,1718543499161,-500.0,0.00026301,3]
[329654283,1718543499196,-3953.08,0.00026301,3]
[329654284,1718543499221,-1627.71,0.00026301,3]
[329654285,1718543499240,-1076.22,0.00026301,3]
[329654286,1718543499264,-2749.41,0.00026301,3]
[329654287,1718543499299,-791.62,0.00026301,3]
[329654288,1718543499344,-2698.23,0.00026301,3]
[329654289,1718543499367,-900.4,0.00026301,3]
[329654290,1718543499409,-500.0,0.00026301,3]
[329654291,1718543499425,-1139.85,0.00026301,3]
[329654292,1718543499440,-500.0,0.00026301,3]
[329654293,1718543499453,-1672.32,0.00026301,3]
[329654294,1718543499465,-569.27,0.00026301,3]
[329654295,1718543499477,-835.69,0.00026301,3]
[329654296,1718543499501,-666.2,0.00026301,3]
[329654297,1718543499517,-677.79,0.00026301,3]
[329654298,1718543499532,-1200.74,0.00026301,3]
[329654299,1718543499545,-737.27,0.00026301,3]
[329654300,1718543499577,-1661.59,0.00026301,3]
[329654301,1718543499591,-500.0,0.00026301,3]
[329654302,1718543499608,-1597.3,0.00026301,3]
[329654303,1718543499625,-1539.48,0.00026301,3]
[329654304,1718543499636,-1018.91,0.00026301,3]
[329654305,1718543499656,-1576.0,0.00026301,3]
[329654306,1718543499684,-500.0,0.00026301,3]
[329654307,1718543499716,-1000.71,0.00026301,3]
[329654308,1718543499747,-965.1,0.00026301,3]
[329654309,1718543499783,-1912.84,0.00026301,3]
[329654310,1718543499819,-500.0,0.00026301,3]
[329654311,1718543499830,-811.0,0.00026301,3]
[329654312,1718543499841,-1707.1,0.00026301,3]
[329654313,1718543499855,-500.0,0.00026301,3]
[329654314,1718543499892,-607.65,0.00026301,3]
[329654315,1718543499910,-500.0,0.00026301,3]
[329654316,1718543499931,-500.0,0.00026301,3]
[329654317,1718543499966,-776.41,0.00026301,3]
[329654318,1718543499981,-757.14,0.00026301,3]
[329654319,1718543500020,-6644.03,0.00026301,3]
[329654320,1718543500042,-530.75,0.00026301,3]
[329654321,1718543500055,-500.0,0.00026301,3]
[329654322,1718543500072,-500.0,0.00026301,3]
[329654323,1718543500100,-500.0,0.00026301,3]
[329654324,1718543500160,-66299.07,0.00026301,2]
[329654325,1718543500172,-302.76,0.00026305,2]
[329654326,1718543500184,-152.0,0.00026349,7]
[329654327,1718543500195,-9378.15517581,0.00026351,2]
[329654328,1718543500224,-9378.1551758,0.00026351,2]
[329654329,1718543500250,-9378.1551758,0.00026351,2]
[329654330,1718543500308,-6650.77244982,0.000264,2]
[329654331,1718543500355,-2826.39,0.000264,2]
[329654332,1718543500388,-500.0,0.00026472,3]
[329654333,1718543500449,-594.24,0.00026472,3]
[329654334,1718543500470,-3131.91,0.00026472,3]
[329654335,1718543500492,-965.52,0.00026472,3]
[329654336,1718543500512,-586.35,0.00026472,3]
[329654337,1718543500528,-1551.76,0.00026472,3]
[329654338,1718543500550,-500.0,0.00026472,3]
[329654339,1718543500580,-573.44,0.00026472,3]
[329654340,1718543500594,-500.0,0.00026472,3]
[329654341,1718543500609,-1506.09,0.00026472,3]
[329654342,1718543500631,-864.61,0.00026472,3]
[329654343,1718543500652,-606.9,0.00026472,3]
[329654344,1718543500667,-500.0,0.00026472,3]
[329654345,1718543500686,-500.0,0.00026472,3]
[329654346,1718543500701,-516.73,0.00026472,3]
[329654347,1718543500715,-848.21,0.00026472,3]
[329654348,1718543500748,-544.71,0.00026472,3]
[329654349,1718543500761,-2488.18,0.00026472,3]
[329654350,1718543500777,-500.0,0.00026472,3]
[329654351,1718543500788,-1078.22,0.00026472,3]
[329654352,1718543500804,-571.93,0.00026473,3]
[329654353,1718543500827,-500.0,0.00026473,3]
[329654354,1718543500849,-500.0,0.00026473,3]
[329654355,1718543500866,-490.36310843,0.00026473,3]
[329654356,1718543500877,-636.74,0.00026473,3]
[329654357,1718543500914,-561.64,0.00026473,3]
[329654358,1718543500937,-801.16,0.00026473,3]
[329654359,1718543500963,-1647.47,0.00026473,3]
[329654360,1718543500992,-500.0,0.00026473,3]
[329654361,1718543501017,-1007.94,0.00026473,3]
[329654362,1718543501057,-671.38,0.00026473,3]
[329654363,1718543501075,-765.87,0.00026473,3]
[329654364,1718543501127,-1108.45,0.00026473,3]
[329654365,1718543501147,-500.0,0.00026473,3]
[329654366,1718543501162,-1206.94,0.00026473,3]
[329654367,1718543501189,-576.89,0.00026473,3]
[329654368,1718543501201,-1759.47,0.00026473,3]
[329654369,1718543501220,-150.0,0.000265,5]
[329654370,1718543501246,-500.0,0.00026572,3]
[329654371,1718543501258,-500.0,0.00026572,3]
[329654372,1718543501271,-150.14,0.00026572,3]
[329654373,1718543501296,-500.0,0.00026572,3]
[329654374,1718543501340,-500.0,0.00026572,3]
[329654375,1718543501352,-500.0,0.00026572,3]
[329654376,1718543501387,-3908.29,0.00026572,3]
[329654377,1718543501408,-8007.85,0.00026572,3]
[329654378,1718543501431,-500.0,0.00026572,3]
[329654379,1718543501455,-538.75,0.00026572,3]
[329654380,1718543501474,-1722.87,0.00026572,3]
[329654381,1718543501495,-1489.44,0.00026572,3]
[329654382,1718543501506,-649.48,0.00026572,3]
[329654383,1718543501521,-3520.91,0.00026572,3]
[329654384,1718543501534,-2428.49,0.00026572,3]
[329654385,1718543501561,-568.3,0.00026572,3]
[329654386,1718543501572,-1046.44,0.00026572,3]
[329654387,1718543501584,-629.85,0.00026572,3]
[329654388,1718543501595,-1143.75,0.00026573,3]
[329654389,1718543501608,-2358.06,0.00026573,3]
[329654390,1718543501620,-500.0,0.00026573,3]
[329654391,1718543501632,-432.31720083,0.00026575,3]
[329654392,1718543501660,-3953.08,0.00026575,3]
[329654393,1718543501673,-1627.71,0.00026575,3]
[329654394,1718543501686,-1076.22,0.00026575,3]
[329654395,1718543501698,-2749.41,0.00026575,3]
[329654396,1718543501716,-791.62,0.00026575,3]
[329654397,1718543501733,-2698.23,0.00026575,3]
[329654398,1718543501744,-900.4,0.00026575,3]
[329654399,1718543501756,-500.0,0.00026575,3]
[329654400,1718543501788,-1139.85,0.00026575,3]
[329654401,1718543501802,-500.0,0.00026575,3]
[329654402,1718543501815,-1672.32,0.00026575,3]
[329654403,1718543501839,-569.27,0.00026575,3]
[329654404,1718543501856,-835.69,0.00026575,3]
[329654405,1718543501870,-666.2,0.00026575,3]
[329654406,1718543501881,-677.79,0.00026575,3]
[329654407,1718543501900,-1200.74,0.00026575,3]
[329654408,1718543501914,-737.27,0.00026575,3]
[329654409,1718543501931,-1661.59,0.00026575,3]
[329654410,1718543501946,-500.0,0.00026575,3]
[329654411,1718543501964,-1597.3,0.00026575,3]
[329654412,1718543501975,-1539.48,0.00026575,3]
[329654413,1718543501990,-1018.91,0.00026575,3]
[329654414,1718543502012,-1576.0,0.00026575,3]
[329654415,1718543502025,-500.0,0.00026575,3]
[329654416,1718543502040,-1000.71,0.00026575,3]
[329654417,1718543502076,-965.1,0.00026575,3]
[329654418,1718543502093,-1912.84,0.00026575,3]
[329654419,1718543502116,-614.8011914,0.00026575,3]
[329654420,1718543502136,-811.0,0.00026575,3]
[329654421,1718543502147,-1707.1,0.00026575,3]
[329654422,1718543502163,-500.0,0.00026575,3]
[329654423,1718543502194,-607.65,0.00026575,3]
[329654424,1718543502209,-500.0,0.00026575,3]
[329654425,1718543502238,-500.0,0.00026575,3]
[329654426,1718543502252,-776.41,0.00026575,3]
[329654427,1718543502264,-757.14,0.00026575,3]
[329654428,1718543502278,-6644.03,0.00026575,3]
[329654429,1718543502294,-530.75,0.00026575,3]
[329654430,1718543502306,-500.0,0.00026575,3]
[329654431,1718543502323,-500.0,0.00026575,3]
[329654432,1718543502339,-500.0,0.00026575,3]
[329654433,1718543502352,-151.0,0.00026575,7]
[329654434,1718543502380,-151.0,0.00026575,7]
[329654435,1718543502394,-151.0,0.00026575,7]
[329654436,1718543502405,-151.0,0.00026575,7]
[329654437,1718543502443,-151.0,0.00026575,7]
[329654438,1718543502457,-151.0,0.00026575,7]
[329654439,1718543502470,-151.0,0.00026575,7]
[329654440,1718543502482,-151.0,0.00026575,7]
[329654441,1718543502518,-151.0,0.00026575,7]
[329654442,1718543502536,-151.0,0.00026575,7]
[329654443,1718543502572,-151.0,0.00026575,7]
[329654444,1718543502584,-151.0,0.00026575,7]
[329654445,1718543502596,-4825.45616764,0.000266,2]
[329654446,1718543502630,-2019.78,0.000267,2]
[329654447,1718543502643,-302.0,0.00026703,4]
[329654448,1718543502659,-500.0,0.00026746,3]
[329654449,1718543502680,-594.24,0.00026746,3]
[329654450,1718543502695,-3131.91,0.00026746,3]
[329654451,1718543502730,-965.52,0.00026746,3]
[329654452,1718543502745,-586.35,0.00026746,3]
[329654453,1718543502782,-1551.76,0.00026746,3]
[329654454,1718543502807,-500.0,0.00026746,3]
[329654455,1718543502835,-573.44,0.00026746,3]
[329654456,1718543502870,-500.0,0.00026746,3]
[329654457,1718543502904,-1506.09,0.00026746,3]
[329654458,1718543502926,-864.61,0.00026746,3]
[329654459,1718543502958,-606.9,0.00026746,3]
[329654460,1718543502970,-500.0,0.00026746,3]
[329654461,1718543502989,-500.0,0.00026746,3]
[329654462,1718543503002,-516.73,0.00026746,3]
[329654463,1718543503018,-848.21,0.00026746,3]
[329654464,1718543503037,-544.71,0.00026746,3]
[329654465,1718543503062,-2488.18,0.00026746,3]
[329654466,1718543503095,-500.0,0.00026746,3]
[329654467,1718543503117,-1078.22,0.00026746,3]
[329654468,1718543503129,-571.93,0.00026747,3]
[329654469,1718543503168,-500.0,0.00026747,3]
[329654470,1718543503186,-500.0,0.00026747,3]
[329654471,1718543503201,-636.74,0.00026747,3]
[329654472,1718543503223,-561.64,0.00026747,3]
[329654473,1718543503242,-801.16,0.00026747,3]
[329654474,1718543503279,-1647.47,0.00026747,3]
[329654475,1718543503298,-500.0,0.00026747,3]
[329654476,1718543503327,-1007.94,0.00026747,3]
[329654477,1718543503355,-671.38,0.00026747,3]
[329654478,1718543503394,-765.87,0.00026747,3]
[329654479,1718543503412,-1108.45,0.00026747,3]
[329654480,1718543503452,-500.0,0.00026747,3]
[329654481,1718543503465,-1206.94,0.00026747,3]
[329654482,1718543503544,-576.89,0.00026747,3]
[329654483,1718543503559,-1759.47,0.00026747,3]
[329654484,1718543503604,-1062.30385084,0.00026754,2]
[329654485,1718543503620,-1026.17085266,0.00026754,2]
[329654486,1718543503634,-500.0,0.00026763,2]
[329654487,1718543503650,-500.0,0.00026763,2]
[329654488,1718543503679,-500.0,0.00026763,2]
[329654489,1718543503691,-500.0,0.00026763,2]
[329654490,1718543503702,-500.0,0.00026763,2]
[329654491,1718543503723,-500.0,0.00026763,2]
[329654492,1718543503736,-1005.56,0.00026825,2]
[329654493,1718543503750,-500.0,0.00026846,3]
[329654494,1718543503762,-500.0,0.00026846,3]
[329654495,1718543503785,-150.14,0.00026846,3]
[329654496,1718543503812,-500.0,0.00026846,3]
[329654497,1718543503828,-534.82300321,0.00026846,3]
[329654498,1718543503839,-500.0,0.00026846,3]
[329654499,1718543503852,-3908.29,0.00026846,3]
[329654500,1718543503896,-8007.85,0.00026846,3]
[329654501,1718543503932,-500.0,0.00026846,3]
[329654502,1718543503949,-538.75,0.00026846,3]
[329654503,1718543503961,-1722.87,0.00026846,3]
[329654504,1718543503981,-1489.44,0.00026846,3]
[329654505,1718543503994,-649.48,0.00026846,3]
[329654506,1718543504030,-3520.91,0.00026846,3]
[329654507,1718543504046,-2428.49,0.00026846,3]
[329654508,1718543504058,-568.3,0.00026846,3]
[329654509,1718543504079,-1046.44,0.00026846,3]
[329654510,1718543504099,-629.85,0.00026846,3]
[329654511,1718543504112,-1143.75,0.00026847,3]
[329654512,1718543504126,-2358.06,0.00026847,3]
[329654513,1718543504139,-500.0,0.00026847,3]
[329654514,1718543504169,-3953.08,0.00026849,3]
[329654515,1718543504180,-1627.71,0.00026849,3]
[329654516,1718543504193,-1076.22,0.00026849,3]
[329654517,1718543504205,-2749.41,0.00026849,3]
[329654518,1718543504216,-791.62,0.00026849,3]
[329654519,1718543504238,-2698.23,0.00026849,3]
[329654520,1718543504259,-900.4,0.00026849,3]
[329654521,1718543504286,-500.0,0.00026849,3]
[329654522,1718543504312,-1139.85,0.00026849,3]
[329654523,1718543504324,-500.0,0.00026849,3]
[329654524,1718543504342,-1672.32,0.00026849,3]
[329654525,1718543504378,-569.27,0.00026849,3]
[329654526,1718543504396,-835.69,0.00026849,3]
[329654527,1718543504418,-666.2,0.00026849,3]
[329654528,1718543504430,-677.79,0.00026849,3]
[329654529,1718543504449,-1200.74,0.00026849,3]
[329654530,1718543504462,-737.27,0.00026849,3]
[329654531,1718543504492,-1661.59,0.00026849,3]
[329654532,1718543504506,-500.0,0.00026849,3]
[329654533,1718543504519,-1597.3,0.00026849,3]
[329654534,1718543504535,-1539.48,0.00026849,3]
[329654535,1718543504550,-1018.91,0.00026849,3]
[329654536,1718543504563,-1576.0,0.00026849,3]
[329654537,1718543504584,-500.0,0.00026849,3]
[329654538,1718543504612,-1000.71,0.00026849,3]
[329654539,1718543504633,-965.1,0.00026849,3]
[329654540,1718543504664,-1912.84,0.00026849,3]
[329654541,1718543504690,-811.0,0.00026849,3]
[329654542,1718543504719,-1707.1,0.00026849,3]
[329654543,1718543504749,-500.0,0.00026849,3]
[329654544,1718543504764,-607.65,0.00026849,3]
[329654545,1718543504785,-500.0,0.00026849,3]
[329654546,1718543504818,-500.0,0.00026849,3]
[329654547,1718543504853,-776.41,0.00026849,3]
[329654548,1718543504887,-757.14,0.00026849,3]
[329654549,1718543504916,-6644.03,0.00026849,3]
[329654550,1718543504940,-530.75,0.00026849,3]
[329654551,1718543504959,-165.22357136,0.00026849,3]
[329654552,1718543505000,-500.0,0.00026849,3]
[329654553,1718543505029,-500.0,0.00026849,3]
[329654554,1718543505046,-9794.72555838,0.000269,3]
[329654555,1718543505058,-1989.09846992,0.000269,2]
[329654556,1718543505095,-1989.09846983,0.000269,2]
[329654557,1718543505118,-1989.09846983,0.000269,2]
[329654558,1718543505132,-1989.09846983,0.000269,2]
[329654559,1718543505156,-1989.09846983,0.000269,2]
[329654560,1718543505167,-1989.09846983,0.000269,2]
[329654561,1718543505179,-1989.09846983,0.000269,2]
[329654562,1718543505199,-1989.09846983,0.000269,2]
[329654563,1718543505221,-1989.09846983,0.000269,2]
[329654564,1718543505244,-1989.09846983,0.000269,2]
[329654565,1718543505257,-1000.0,0.0002697,2]
[329654566,1718543505273,-500.0,0.0002697,2]
[329654567,1718543505285,-500.0,0.0002697,2]
[329654568,1718543505296,-1000.0,0.0002697,2]
[329654569,1718543505333,-1000.0,0.0002697,2]
[329654570,1718543505346,-1000.0,0.0002697,2]
[329654571,1718543505363,-872.31209111,0.0002697,2]
[329654572,1718543505381,-1726.785855,0.0002697,2]
[329654573,1718543505396,-20000.0,0.00027,5]
[329654574,1718543505416,-23021.73307249,0.00027,2]
[329654575,1718543505427,-286.38355442,0.00027,2]
[329654576,1718543505441,-61540.00945835,0.00027,2]
[329654577,1718543505463,-14532.76758647,0.00027,2]
[329654578,1718543505487,-30863.38340508,0.00027,2]
[329654579,1718543505503,-1000.0,0.00027,2]
[329654580,1718543505557,-200.0,0.00027,5]
[329654581,1718543505587,-155.0,0.00027,2]
[329654582,1718543505622,-199.04171006,0.00027,2]
[329654583,1718543505637,-177.53545834,0.00027,4]
[329654584,1718543505662,-1400.0,0.00027,2]
[329654585,1718543505702,-2531.016936,0.00027,2]
[329654586,1718543505717,-10000.0,0.00027,2]
[329654587,1718543505734,-10000.0,0.00027,2]
[329654588,1718543505749,-10000.0,0.00027,2]
[329654589,1718543505768,-15297.42999877,0.00027,2]
[329654590,1718543505784,-3599.99999906,0.00027,28]
[329654591,1718543505795,-413.565346,0.00027,2]
[329654592,1718543505809,-10000.0,0.00027,2]
[329654593,1718543505826,-16280.22035418,0.00027,2]
[329654594,1718543505848,-10892.16284236,0.00027,2]
[329654595,1718543505891,-7524.42946088,0.00027,2]
[329654596,1718543505932,-10340.70685083,0.00027,2]
[329654597,1718543505950,-211.0,0.00027,2]
[329654598,1718543506007,-150.0,0.00027,5]
[329654599,1718543506030,-16273.42,0.00027,3]
[329654600,1718543506049,-152.0,0.00027002,8]
[329654601,1718543506067,-500.0,0.0002702,3]
[329654602,1718543506116,-594.24,0.0002702,3]
[329654603,1718543506140,-3131.91,0.0002702,3]
[329654604,1718543506163,-965.52,0.0002702,3]
[329654605,1718543506194,-586.35,0.0002702,3]
[329654606,1718543506241,-1551.76,0.0002702,3]
[329654607,1718543506329,-500.0,0.0002702,3]
[329654608,1718543506361,-573.44,0.0002702,3]
[329654609,1718543506391,-500.0,0.0002702,3]
[329654610,1718543506449,-1506.09,0.0002702,3]
[329654611,1718543506473,-864.61,0.0002702,3]
[329654612,1718543506504,-606.9,0.0002702,3]
[329654613,1718543506564,-500.0,0.0002702,3]
[329654614,1718543506592,-500.0,0.0002702,3]
[329654615,1718543506627,-516.73,0.0002702,3]
[329654616,1718543506648,-848.21,0.0002702,3]
[329654617,1718543506663,-544.71,0.0002702,3]
[329654618,1718543506702,-500.0,0.0002702,3]
[329654619,1718543506740,-2488.18,0.0002702,3]
[329654620,1718543506754,-1078.22,0.0002702,3]
[329654621,1718543506770,-571.93,0.00027021,3]
[329654622,1718543506788,-500.0,0.00027021,3]
[329654623,1718543506820,-500.0,0.00027021,3]
[329654624,1718543506834,-151.0,0.00027021,7]
[329654625,1718543506877,-636.74,0.00027021,3]
[329654626,1718543506954,-561.64,0.00027021,3]
[329654627,1718543506969,-801.16,0.00027021,3]
[329654628,1718543507003,-1647.47,0.00027021,3]
[329654629,1718543507029,-500.0,0.00027021,3]
[329654630,1718543507046,-1007.94,0.00027021,3]
[329654631,1718543507063,-671.38,0.00027021,3]
[329654632,1718543507082,-765.87,0.00027021,3]
[329654633,1718543507096,-1108.45,0.00027021,3]
[329654634,1718543507118,-500.0,0.00027021,3]
[329654635,1718543507141,-1206.94,0.00027021,3]
[329654636,1718543507154,-576.89,0.00027021,3]
[329654637,1718543507175,-1759.47,0.00027021,3]
[329654638,1718543507189,-5000.0,0.00027067,2]
[329654639,1718543507214,-500.0,0.0002712,3]
[329654640,1718543507233,-500.0,0.0002712,3]
[329654641,1718543507250,-150.14,0.0002712,3]
[329654642,1718543507265,-500.0,0.0002712,3]
[329654643,1718543507283,-500.0,0.0002712,3]
[329654644,1718543507296,-3908.29,0.0002712,3]
[329654645,1718543507469,-8007.85,0.0002712,3]
[329654646,1718543507489,-500.0,0.0002712,3]
[329654647,1718543507532,-538.75,0.0002712,3]
[329654648,1718543507544,-1722.87,0.0002712,3]
[329654649,1718543507555,-1489.44,0.0002712,3]
[329654650,1718543507570,-649.48,0.0002712,3]
[329654651,1718543507582,-3520.91,0.0002712,3]
[329654652,1718543507593,-2428.49,0.0002712,3]
[329654653,1718543507605,-568.3,0.0002712,3]
[329654654,1718543507618,-1046.44,0.0002712,3]
[329654655,1718543507629,-629.85,0.0002712,3]
[329654656,1718543507641,-1143.75,0.00027121,3]
[329654657,1718543507653,-2358.06,0.00027121,3]
[329654658,1718543507663,-500.0,0.00027121,3]
[329654659,1718543507675,-3953.08,0.00027123,3]
[329654660,1718543507713,-1627.71,0.00027123,3]
[329654661,1718543507737,-1076.22,0.00027123,3]
[329654662,1718543507753,-2749.41,0.00027123,3]
[329654663,1718543507770,-791.62,0.00027123,3]